[Event "Frauenbundesliga 2021-22"]
[Site "Germany"]
[Date "2022.05.27"]
[Round "4.21"]
[White "Ciolacu, Alessia-Mihaela"]
[Black "Schleining, Zoya"]
[Result "1/2-1/2"]
[ECO "A88"]
[WhiteElo "2198"]
[BlackElo "2329"]
[Annotator "TA"]
[PlyCount "85"]
[EventDate "2021.11.26"]
[EventType "team-tourn"]
[EventCountry "GER"]
[SourceTitle "playchess.com"]
[Source "ChessBase"]
[SourceQuality "1"]
[WhiteTeam "Hemer"]
[BlackTeam "Deizisau"]
[TimeControl "40/5400+30:1800+30"]

{[%evp 18,85,44,8,33,32,24,9,58,40,47,10,63,55,49,45,29,40,50,49,97,46,61,45,50,50,76,75,72,71,68,40,82,0,101,109,117,85,112,85,66,47,52,54,58,58,58,25,60,8,12,0,34,34,35,34,34,34,34,34,37,37,34,34,34,23,23,23,23,0]} 1. d4 {[%emt 0:00:03]} d6 {[%emt 0:00:07]} 2. Nf3 {[%emt 0:00:09]} f5 {[%emt 0:00:25]} 3. g3 {[%emt 0:00:54]} Nf6 {[%emt 0:00:47]} 4. Bg2 {[%emt 0:00:48]} g6 {[%emt 0:00:18]} 5. b3 {[%emt 0:01:20]} Bg7 {[%emt 0:00:40]} 6. Bb2 {[%emt 0:00:12]} O-O {[%emt 0:01:16]} 7. O-O {[%emt 0:00:26]} c6 {[%emt 0:02:35]} 8. c4 {[%emt 0:02:37]} a5 {[%emt 1:28:22]} 9. Nc3 {[%emt 0:02:25]} Na6 {[%emt 0:00:00]} 10. Qc2 {[%emt 0:12:02]} Rb8 {[%emt 0:00:00] A88: Dutch Defence: Leningrad System: 5 Nf3 0-0 6 0-0 d6 7 Nc3 c6.} 11. a3 {[%emt 0:16:21]} b5 {[%emt 0:00:00] [#]} 12. Nd2 $146 {[%emt 0:00:54]} ({Predecessor:} 12. cxb5 cxb5 13. Rac1 b4 14. Na4 Kh8 15. Nd2 Be6 16. Nc4 Bd5 17. Qd3 bxa3 18. Bxa3 {½-½ (27) Hervo,F-Bricard,E (2375) Chartres 1990}) 12... d5 {[%emt 0:00:00]} (12... Qc7 $11 {deserves consideration.}) 13. cxb5 {[%emt 0:21:17]} (13. e3 {with more complications.} Ne4 14. cxb5 cxb5 15. Rfc1) 13... cxb5 {[%emt 0:00:00]} 14. Nf3 {[%emt 0:00:07]} Be6 {[%emt 0:00:00]} (14... b4 $11 15. Na2 bxa3 16. Bxa3 Ne4) 15. Ne5 {[%emt 0:05:11] Hoping for Nc6.} Qb6 {[%emt 0:00:00] Prevents Nc6.} 16. Rfc1 {[%emt 0:02:41]} Rfc8 {[%emt 0:00:00]} 17. Qd1 {[%emt 0:00:53]} Ne4 {[%emt 0:00:00]} 18. e3 {[%emt 0:07:17]} Qd6 {[%emt 0:00:00]} (18... b4 $14 19. Ne2 g5) 19. Nd3 {[%emt 0:02:50]} ({Better is} 19. Ne2 $16) 19... Bd7 {[%emt 0:00:00]} 20. f3 {[%emt 0:07:13]} Nxc3 {[%emt 0:00:00]} 21. Bxc3 {[%emt 0:00:14]} b4 {[%emt 0:00:00]} 22. axb4 {[%emt 0:00:19]} axb4 {[%emt 0:00:00]} 23. Be1 {[%emt 0:01:32]} Bb5 {[%emt 0:00:00]} 24. Rc2 {[%emt 0:00:49]} Qe6 {[%emt 0:00:01]} 25. Kf2 {[%emt 0:01:52]} (25. Nf4 $16 Qd6 26. Raa2) 25... Bxd3 {[%emt 0:01:19]} ({Don't take} 25... Bh6 26. Rxc8+ Qxc8 27. f4 $14) (25... Rxc2+ $1 $11 26. Qxc2 Qb6) 26. Rxc8+ {[%emt 0:00:20]} Qxc8 {[%emt 0:02:06]} 27. Qxd3 {[%emt 0:00:14]} Rb6 {[%emt 0:02:52]} 28. Ra4 {[%emt 0:01:53]} Qb7 {[%emt 0:00:57]} 29. Qd2 {[%emt 0:03:50]} e6 {[%emt 0:00:30]} 30. Bf1 {[%emt 0:02:26]} Bf8 {[%emt 0:00:17]} 31. Bd3 {[%emt 0:03:19]} Nc7 {[%emt 0:01:01]} 32. Qe2 {[%emt 0:02:11]} Qc6 {[%emt 0:00:59]} 33. Ra2 {[%emt 0:00:25]} (33. Qc2 $14) 33... Nb5 $11 {[%emt 0:00:28]} 34. Bxb5 {[%emt 0:00:53]} (34. Ra1 {feels hotter.} Nc3 35. Qb2 Bd6 36. Kg2) 34... Qxb5 {[%emt 0:00:23]} 35. Qxb5 {[%emt 0:00:50]} Rxb5 {[%emt 0:00:02][%mdl 4096] Endgame KRB-KRB} 36. Ke2 {[%emt 0:00:25]} Rb7 {[%emt 0:00:15]} 37. Kd3 {[%emt 0:00:14]} Kf7 {[%emt 0:00:14]} 38. Bd2 {[%emt 0:00:55]} Bd6 {[%emt 0:00:32]} 39. Ra8 {[%emt 0:00:41]} h5 {[%emt 0:00:42]} 40. f4 {[%emt 0:00:44]} Be7 {[%emt 0:00:33]} 41. h4 {[%emt 0:01:05]} Bd6 {[%emt 0:00:27]} 42. Ra6 {[%emt 0:00:09]} Be7 {[%emt 0:00:09]} 43. Ra8 {[%emt 0:00:08] Weighted Error Value: White=0.15 (very precise) /Black=0.18 (very precise)} 1/2-1/2

[Event "Frauenbundesliga 2021-22"]
[Site "Germany"]
[Date "2022.05.27"]
[Round "4.22"]
[White "Rapport, Jovana"]
[Black "Ionica, Iulia-Ionela"]
[Result "1-0"]
[ECO "B07"]
[WhiteElo "2294"]
[BlackElo "2186"]
[Annotator "TA"]
[PlyCount "95"]
[EventDate "2021.11.26"]
[EventType "team-tourn"]
[EventCountry "GER"]
[SourceTitle "playchess.com"]
[Source "ChessBase"]
[SourceQuality "1"]
[WhiteTeam "Deizisau"]
[BlackTeam "Hemer"]
[TimeControl "40/5400+30:1800+30"]

{[%evp 9,95,33,37,38,45,0,54,52,48,33,52,36,68,52,71,76,98,82,94,100,103,97,86,95,77,79,95,80,92,101,104,77,125,123,125,125,167,163,171,165,212,189,189,187,189,187,275,267,306,295,354,342,464,458,439,441,410,410,462,445,758,768,896,752,1936,1931,1847,1802,1600,1675,29981,29982,29976,29973,29985,1473,29985,29986,29986,29987,29987,29988,29988,29987,29987,29988,29988,416]} 1. e4 {[%emt 0:00:03]} d6 {[%emt 0:01:28]} 2. d4 {[%emt 0:00:53]} Nf6 {[%emt 0:00:05]} 3. Nc3 {[%emt 0:00:23]} c6 {[%emt 0:00:09]} 4. Nf3 {[%emt 0:00:07][%cal Bg1f3,Bf3d2,Bd2c4][%mdl 32]} Qa5 {[%emt 0:01:33]} 5. Nd2 {[%emt 0:00:26]} e5 {[%emt 0:03:26]} 6. Nc4 {[%emt 0:01:01] B07: Pirc Defence: Miscellaneous Systems.} Qc7 {[%emt 0:03:47] [#]} 7. d5 $146 {[%emt 0:02:46]} ({Predecessor:} 7. a4 Be7 8. Be2 O-O 9. O-O Nbd7 10. Be3 d5 11. exd5 Nxd5 12. Nxd5 cxd5 13. Nxe5 Nxe5 14. dxe5 Qxe5 {1-0 (45) Roseneck,J (2178)-Salimov,R (2026) Khanty-Mansiysk 2016}) 7... Be7 {[%emt 0:16:23]} (7... b5 $11 8. Ne3 b4) 8. Ne3 $14 {[%emt 0:06:47] White is slightly better.} O-O {[%emt 0:03:31]} 9. a4 {[%emt 0:03:41]} Re8 {[%emt 0:03:34]} 10. Bc4 {[%emt 0:01:00]} Bf8 {[%emt 0:02:57]} 11. O-O {[%emt 0:03:34]} Nbd7 {[%emt 0:03:07]} 12. a5 {[%emt 0:07:26]} Nc5 {[%emt 0:04:42]} 13. Qf3 {[%emt 0:01:54]} Rb8 {[%emt 0:13:18]} 14. b4 {[%emt 0:05:32]} Na6 {[%emt 0:04:01]} 15. Rb1 {[%emt 0:10:22]} (15. b5 {feels hotter.} cxd5 16. Nexd5 Nxd5 17. Bxd5 Nc5 18. b6) 15... cxd5 {[%emt 0:04:50]} 16. Ncxd5 {[%emt 0:04:36]} Nxd5 {[%emt 0:00:50]} 17. Bxd5 {[%emt 0:00:15]} Be6 {[%emt 0:00:43]} 18. c4 {[%emt 0:06:28]} Qd8 {[%emt 0:01:57]} 19. Bd2 {[%emt 0:02:55]} Nc7 {[%emt 0:02:05]} 20. Rfc1 {[%emt 0:02:37] White is more active.} b6 {[%emt 0:04:45]} (20... Nxd5 $142 21. Nxd5 (21. cxd5 Bd7 $14) 21... Be7) 21. axb6 $40 {[%emt 0:03:44][%mdl 128] Black is in trouble.} axb6 {[%emt 0:00:05]} 22. b5 {[%emt 0:04:30]} Qe7 {[%emt 0:09:50]} 23. Bc6 {[%emt 0:02:17]} Rec8 {[%emt 0:03:16]} 24. Ra1 {[%emt 0:02:08][%cal Bb1a1,Ba1a6,Ba6a7,Ba7d7][%mdl 32]} g6 {[%emt 0:01:56]} (24... Qd8 {was necessary.} 25. Ra7 Qh4) 25. Nd5 {[%emt 0:01:24]} Bxd5 {[%emt 0:00:07]} 26. cxd5 {[%emt 0:00:06]} (26. exd5 Ne8 27. Ra6 Ng7 $16) 26... Ne8 {[%emt 0:05:07]} 27. Be3 {[%emt 0:05:21]} Ng7 {[%emt 0:01:13]} (27... Nf6 $142 28. Ra6 Qd8) 28. Ra6 $18 {[%emt 0:01:14]} Qd8 {[%emt 0:00:11]} 29. g4 {[%emt 0:02:13] Prevents f5.} ({Much less strong is} 29. Ra7 $6 f5 30. exf5 (30. Qh3 Rc7 $16) 30... gxf5 $18) 29... Be7 {[%emt 0:02:13]} 30. Ra7 {[%emt 0:00:06]} f6 {[%emt 0:01:10]} 31. Rd7 {[%emt 0:04:12]} ({Not} 31. Qh3 Rc7 $18) 31... Qf8 {[%emt 0:00:05]} 32. Ra1 {[%emt 0:00:04] [#] Black must now prevent Raa7.} ({Don't play} 32. Qh3 Kh8 33. Ra1 Rd8 $18) 32... Rd8 {[%emt 0:00:08]} 33. Rda7 {[%emt 0:03:11]} f5 {[%emt 0:02:24]} 34. R1a6 {[%emt 0:00:54]} fxe4 {[%emt 0:01:14]} (34... Rdc8 $142 35. Bxb6 Bd8) 35. Qxf8+ {[%emt 0:03:33]} Kxf8 {[%emt 0:00:15]} 36. Bxb6 {[%emt 0:00:09] [#] Hoping for Bc7.} Rxb6 {[%emt 0:00:36]} 37. Rxb6 {[%emt 0:00:01] And now Rbb7 would win.} e3 {[%emt 0:00:29]} 38. fxe3 {[%emt 0:00:14]} Bg5 {[%emt 0:00:05]} 39. Kf2 {[%emt 0:00:30]} h5 {[%emt 0:00:11]} 40. Rbb7 {[%emt 0:00:57]} Ne8 {[%emt 0:00:48]} 41. gxh5 {[%emt 0:31:05]} gxh5 {[%emt 0:31:10]} 42. Rf7+ {[%emt 0:02:25]} Kg8 {[%emt 0:00:07]} 43. Bxe8 {[%emt 0:01:25] White mates.} Bh4+ {[%emt 0:00:05]} 44. Ke2 {[%emt 0:00:01]} Rxe8 {[%emt 0:00:08]} 45. Rg7+ {[%emt 0:00:01]} Kh8 {[%emt 0:00:09]} 46. Rh7+ {[%emt 0:00:01]} Kg8 {[%emt 0:00:32]} 47. Rag7+ {[%emt 0:01:37]} Kf8 {[%emt 0:00:10]} 48. Rh8+ {[%emt 0:00:23] Weighted Error Value: White=0.06 (flawless) /Black=0.44} (48. b6 $142 Rd8 49. b7 Bf6 50. Rc7 Kg8 51. Rhd7 Rf8 52. Rc8 Bd8 53. b8=Q) 1-0

[Event "Frauenbundesliga 2021-22"]
[Site "Germany"]
[Date "2022.05.27"]
[Round "4.23"]
[White "Moeller, Lisa-Marie"]
[Black "Koepke, Elena"]
[Result "0-1"]
[ECO "B06"]
[WhiteElo "1927"]
[BlackElo "2285"]
[Annotator "TA"]
[PlyCount "78"]
[EventDate "2021.11.26"]
[EventType "team-tourn"]
[EventCountry "GER"]
[SourceTitle "playchess.com"]
[Source "ChessBase"]
[SourceQuality "1"]
[WhiteTeam "Hemer"]
[BlackTeam "Deizisau"]
[TimeControl "40/5400+30:1800+30"]

{[%evp 9,78,23,33,0,0,0,10,0,0,0,7,20,37,33,44,47,44,27,30,43,20,40,25,27,27,-65,-61,-88,-55,-80,-81,-81,-88,-115,-114,-117,-113,-128,-135,-127,-123,-145,-133,-137,-119,-170,-176,-212,-217,-263,-260,-262,-261,-251,-236,-310,-302,-279,-266,-29949,-29953,-29945,-29949,-29949,-29959,-12748,-11536,-7112,-7102,-6427,-6283]} 1. e4 {[%emt 0:00:02]} d6 {[%emt 0:00:13]} 2. d4 {[%emt 0:00:06]} g6 {[%emt 0:00:08]} 3. Nc3 {[%emt 0:00:41]} Bg7 {[%emt 0:00:05]} 4. Be3 {[%emt 0:00:26]} a6 {[%emt 0:00:10]} 5. Nf3 {[%emt 0:03:36]} b5 {[%emt 0:02:09]} 6. a3 {[%emt 0:03:57] B06: Modern Defence.} Bb7 {[%emt 0:00:57]} 7. Bd3 {[%emt 0:01:36]} Nd7 {[%emt 0:03:42]} 8. Qd2 {[%emt 0:08:06] The position is equal.} c5 {[%emt 0:09:28]} 9. O-O {[%emt 0:07:26]} Qc7 {[%emt 0:28:27]} 10. Rfe1 {[%emt 0:05:14] [#]} h6 $146 {[%emt 0:05:13]} ({Predecessor:} 10... Ngf6 11. Bh6 O-O 12. Bxg7 Kxg7 13. h3 e5 14. d5 c4 15. Bf1 Nc5 16. Nh4 Nh5 {0-1 (32) Haletzki,B (1926)-Latzel,W (1820) Deggendorf 2006}) 11. Rad1 {[%emt 0:08:08]} cxd4 {[%emt 0:04:39]} 12. Bxd4 {[%emt 0:02:17]} Ngf6 {[%emt 0:10:29]} 13. e5 {[%emt 0:06:19]} (13. Nd5 $5 Bxd5 14. exd5 $16) 13... dxe5 {[%emt 0:00:07]} 14. Nxe5 {[%emt 0:00:40]} Nxe5 {[%emt 0:00:46]} 15. Bxe5 {[%emt 0:00:37]} Qc6 {[%emt 0:03:32][%csl Gb7][%cal Rc6g2] [#]} 16. f3 {[%emt 0:03:22][%cal Oa3a4]} O-O {[%emt 0:01:43]} 17. Bxf6 {[%emt 0:16:52]} (17. Kh1 $11) 17... Qxf6 $15 {[%emt 0:00:46]} ({Don't play} 17... Bxf6 18. Qxh6 Qc5+ 19. Kh1 $11) 18. Be4 {[%emt 0:01:05]} Qb6+ {[%emt 0:05:20]} 19. Qe3 {[%emt 0:04:02]} Qxe3+ {[%emt 0:00:21] Black continues to play with concentration.} 20. Rxe3 {[%emt 0:00:05]} Bxe4 {[%emt 0:00:10]} 21. fxe4 {[%emt 0:01:04]} Rfc8 {[%emt 0:09:15]} 22. e5 {[%emt 0:11:59]} e6 {[%emt 0:02:48]} 23. Re2 {[%emt 0:05:24]} Rc5 {[%emt 0:01:17]} 24. Rde1 {[%emt 0:00:52]} Rac8 {[%emt 0:00:43]} 25. Kf2 {[%emt 0:01:00]} h5 {[%emt 0:00:40]} 26. Re4 {[%emt 0:01:19]} Rc4 {[%emt 0:02:42]} 27. Rxc4 {[%emt 0:02:43]} (27. Kf3 $17) 27... Rxc4 $17 {[%emt 0:08:10][%mdl 4096] Endgame KRB-KRN} 28. Re4 {[%emt 0:03:50]} Rc5 {[%emt 0:00:00]} 29. a4 {[%emt 0:01:06]} Bxe5 {[%emt 0:00:00]} 30. axb5 {[%emt 0:00:31][%cal Oe4e5] Black must now prevent Rxe5!} Bxc3 {[%emt 0:00:00]} 31. bxc3 {[%emt 0:00:27] b6 is the strong threat.} axb5 $19 {[%emt 0:00:00] KR-KR} 32. Re3 {[%emt 0:00:19]} Kg7 {[%emt 0:00:00]} 33. Ke2 {[%emt 0:00:24]} Kf6 {[%emt 0:00:00] ( -> ...Re5)} 34. Kd3 $2 {[%emt 0:01:00] [#]} (34. Kd2 $19) 34... Rd5+ {[%emt 0:00:00]} 35. Ke2 {[%emt 0:00:20]} Re5 {[%emt 0:00:00]} 36. Kd2 {[%emt 0:00:27]} Rxe3 {[%emt 0:00:00]} 37. Kxe3 {[%emt 0:00:02]} Ke5 {[%emt 0:00:00] Black is clearly winning.} 38. Kd3 {[%emt 0:00:18]} Kd5 {[%emt 0:00:00] Strongly threatening ...g5.} 39. g3 {[%emt 0:00:25]} e5 {[%emt 0:00:00] Weighted Error Value: White=0.42/Black=0.03 (flawless)} 0-1

[Event "Frauenbundesliga 2021-22"]
[Site "Germany"]
[Date "2022.05.27"]
[Round "4.24"]
[White "Jelica, Mara"]
[Black "Dartmann Aubanell, Catriona"]
[Result "1-0"]
[ECO "B10"]
[WhiteElo "2121"]
[BlackElo "1874"]
[Annotator "TA"]
[PlyCount "61"]
[EventDate "2021.11.26"]
[EventType "team-tourn"]
[EventCountry "GER"]
[SourceTitle "playchess.com"]
[Source "ChessBase"]
[SourceQuality "1"]
[WhiteTeam "Deizisau"]
[BlackTeam "Hemer"]
[TimeControl "40/5400+30:1800+30"]

{[%evp 13,61,71,77,68,78,75,131,105,131,102,143,126,173,151,192,143,168,100,108,101,105,111,115,72,135,139,144,132,197,236,269,376,691,645,823,805,768,648,648,630,630,581,1996,1757,3015,2616,29984,29984,29987,1222]} 1. c4 {[%emt 0:00:00]} c6 {[%emt 0:00:19]} 2. e4 {[%emt 0:00:29]} d5 {[%emt 0:00:31]} 3. exd5 {[%emt 0:00:04]} cxd5 {[%emt 0:00:14]} 4. cxd5 {[%emt 0:00:03]} Nf6 {[%emt 0:01:37]} 5. Bb5+ {[%emt 0:00:04]} Bd7 {[%emt 0:02:08]} 6. Bc4 {[%emt 0:00:05]} g6 {[%emt 0:05:54]} 7. Nc3 {[%emt 0:00:07]} Bg7 {[%emt 0:04:51]} 8. Nf3 {[%emt 0:00:49] B10: Caro-Kann: 2 d3 and 2 c4.} O-O {[%emt 0:01:33]} 9. O-O {[%emt 0:00:19]} Qb6 {[%emt 0:15:09] [#]} (9... b5 $142 10. Nxb5 Bxb5 11. Bxb5 Nxd5) 10. d3 $146 {[%emt 0:06:02] White is clearly better.} ({Predecessor:} 10. Re1 Na6 11. d3 Rae8 12. Ne5 Bf5 13. g4 Bc8 14. Be3 Qxb2 15. Bd4 Nxg4 16. Nb5 Qxd4 17. Nxd4 Bxe5 {1-0 (25) Kauppala,P (2063)-Ruosteenoja,E (1896) Jyvaskyla 2018}) 10... Na6 {[%emt 0:03:05]} 11. Qe2 {[%emt 0:02:25]} Rfe8 {[%emt 0:16:24]} 12. Ne5 {[%emt 0:02:40]} Rad8 {[%emt 0:07:19]} (12... Qd6 $16) 13. Bg5 {[%emt 0:08:10][%cal Od5d6] [#] aiming for d6!} Bf5 {[%emt 0:12:40]} 14. Be3 {[%emt 0:06:01]} (14. Rae1 $18) 14... Qd6 $16 {[%emt 0:02:36]} 15. Bxa7 {[%emt 0:01:46]} ({White should play} 15. f4 $18) 15... Nc7 {[%emt 0:02:12]} 16. d4 {[%emt 0:11:19] Threatens to win with Bc5.} Nfxd5 {[%emt 0:05:21]} 17. Bc5 {[%emt 0:02:28]} Qf6 {[%emt 0:00:08]} 18. Rad1 {[%emt 0:06:09] White is more active.} Qg5 {[%emt 0:04:32]} ({Better is} 18... Be6) 19. f4 $36 {[%emt 0:09:31][%mdl 2048] White is really pushing.} Qh4 {[%emt 0:05:39]} 20. g3 {[%emt 0:03:04]} Qf6 {[%emt 0:00:23]} (20... Qh3 $16 {keeps fighting.} 21. Rde1 Be6) 21. Qf3 $18 {[%emt 0:00:52]} e6 {[%emt 0:04:30]} 22. g4 {[%emt 0:03:49] [#] And now g5 would win.} g5 $2 {[%emt 0:02:09]} (22... Bc2 23. Rc1 b6) 23. gxf5 {[%emt 0:01:33]} gxf4 {[%emt 0:00:47]} 24. fxe6 {[%emt 0:02:36]} fxe6 {[%emt 0:00:16]} 25. Bxd5 {[%emt 0:03:46]} Nxd5 {[%emt 0:01:37]} 26. Nxd5 {[%emt 0:00:09]} exd5 {[%emt 0:00:54]} 27. Qxf4 {[%emt 0:00:28]} Qa6 {[%emt 0:00:06]} 28. Qf7+ {[%emt 0:06:50]} Kh8 {[%emt 0:00:02]} 29. Be7 {[%emt 0:04:28]} Rg8 {[%emt 0:00:58]} 30. Kh1 {[%emt 0:04:13]} Qe2 {[%emt 0:00:32]} 31. Qf3 {[%emt 0:00:53] Weighted Error Value: White=0.21 (precise) /Black=0.79} (31. Rde1 $142 Qxe1 32. Rxe1 Rgf8 33. Qh5 h6 34. Bxd8 Rf4 35. Ng6+ Kh7 36. Nxf4 Kg8 37. Re8+ Bf8 38. Qg6+ Kh8 39. Rxf8#) 1-0

[Event "Frauenbundesliga 2021-22"]
[Site "Germany"]
[Date "2022.05.27"]
[Round "4.25"]
[White "Sieber, Fiona"]
[Black "Abdumalik, Zhansaya"]
[Result "0-1"]
[ECO "B40"]
[WhiteElo "2264"]
[BlackElo "2489"]
[Annotator "TA"]
[PlyCount "48"]
[EventDate "2021.11.26"]
[EventType "team-tourn"]
[EventCountry "GER"]
[SourceTitle "playchess.com"]
[Source "ChessBase"]
[SourceQuality "1"]
[WhiteTeam "Lehrte"]
[BlackTeam "Baden-Baden"]
[TimeControl "40/5400+30:1800+30"]

{[%evp 9,48,29,52,45,48,14,34,39,24,26,45,-16,-22,-36,-40,-33,-37,-125,-126,-149,20,21,38,31,18,16,31,-140,-137,-137,-136,-218,-193,-197,-173,-1138,-1111,-1233,-1097,-1082,-1068]} 1. e4 {[%emt 0:00:02]} c5 {[%emt 0:00:06]} 2. Nf3 {[%emt 0:00:04]} a6 {[%emt 0:00:17]} 3. c4 {[%emt 0:01:06]} e6 {[%emt 0:00:36]} 4. Nc3 {[%emt 0:00:46]} Qc7 {[%emt 0:00:18]} 5. Be2 {[%emt 0:01:18]} b6 {[%emt 0:00:40]} 6. O-O {[%emt 0:00:34] B40: Sicilian: 2...e6, Unusual lines.} Bb7 {[%emt 0:03:02]} 7. a3 {[%emt 0:11:58]} Nf6 {[%emt 0:03:35]} 8. e5 {[%emt 0:03:12] White is slightly better.} Ng4 {[%emt 0:01:54]} 9. d4 {[%emt 0:04:55] [#] Threatens to win with h3.} Nc6 $146 {[%emt 0:00:49]} ({Predecessor:} 9... cxd4 10. Qxd4 h5 11. Ne4 Nc6 12. Nd6+ Bxd6 13. Qxd6 Rc8 14. Bf4 Qxd6 15. exd6 f6 {½-½ (57) Berzina,I (2280)-Cramling,P (2492) Tallinn 2006}) 10. d5 {[%emt 0:07:57]} (10. Bf4 Nxd4 11. Nxd4 cxd4 $11) (10. h3 $14 cxd4 11. Nd5 exd5 12. hxg4) 10... Ncxe5 $11 {[%emt 0:02:35]} 11. Nxe5 {[%emt 0:00:04]} Nxe5 {[%emt 0:00:08]} 12. f4 {[%emt 0:00:05]} Ng6 {[%emt 0:00:07]} 13. dxe6 {[%emt 0:07:58]} (13. Bf3 $15 O-O-O 14. g3) 13... dxe6 $17 {[%emt 0:04:37]} 14. f5 {[%emt 0:00:04]} Ne5 {[%emt 0:01:57]} (14... Qc6 $2 15. Bf3 Qc8 16. fxg6 hxg6 17. Qa4+ b5 18. cxb5 Bxf3 19. Rxf3 $18) (14... Rd8 $17 15. Qc2 (15. Qa4+ Bc6 $17) 15... Bd6) 15. fxe6 $11 {[%emt 0:02:42] Black must now prevent Bf4.} fxe6 {[%emt 0:00:38]} (15... Qc6 $2 16. exf7+ Nxf7 17. Bf3 $18) 16. Bh5+ {[%emt 0:14:05]} (16. Bg4 $5 Nxg4 17. Qxg4 $14) 16... g6 {[%emt 0:01:38]} 17. Bg4 {[%emt 0:06:32]} Qc6 {[%emt 0:04:08][%csl Gb7][%cal Rc6g2]} 18. Bf3 {[%emt 0:01:41]} (18. Bh3 $14 {keeps the upper hand.} Bg7 19. Qe2 (19. Bg5 Nf7 $11)) 18... Nxf3+ $40 {[%emt 0:01:04][%mdl 128] Black is out for blood.} 19. Rxf3 {[%emt 0:00:06]} Bg7 $1 {[%emt 0:01:18]} 20. Bg5 {[%emt 0:02:06] [#]} (20. Be3 $17) 20... Bd4+ $1 $19 {[%emt 0:00:45] This bishop pair is nice.} (20... Rf8 21. Nd5 h6 22. Bh4 Bd4+ 23. Kh1 $17) 21. Kh1 {[%emt 0:00:07] [#]} h6 $1 {[%emt 0:00:13]} ({And not} 21... Rf8 22. Nd5 Kd7 23. Qe2 $15) 22. Qc2 $2 {[%emt 0:12:47]} (22. Bd2) 22... Qxf3 {[%emt 0:00:47] Black is clearly winning.} 23. Nd5 {[%emt 0:09:44] [#]} Bxd5 $1 {[%emt 0:00:40]} 24. cxd5 {[%emt 0:00:30]} Qf5 {[%emt 0:00:18] Weighted Error Value: White=0.82/Black=0.28 (precise)} 0-1